bitfinex/quotes_SOLUSD_20230402
["timestamp","ask_amount","ask_price","bid_price","bid_amount"]
[1680472428694,20.0,20.405,20.393,10.0]
[1680472433695,20.0,20.405,20.395,10.0]
[1680472433996,10.0,20.409,20.395,10.0]
[1680472434195,10.0,20.409,20.397,10.0]
[1680472434397,14.33333719,20.41,20.397,10.0]
[1680472434599,10.0,20.413,20.397,10.0]
[1680472437701,10.0,20.411,20.397,10.0]
[1680472438085,10.0,20.411,20.399,10.0]
[1680472439701,10.0,20.415,20.397,10.0]
[1680472439896,20.0,20.414,20.4,22.89]
[1680472440403,20.0,20.414,20.401,10.0]
[1680472441394,10.0,20.414,20.401,10.0]
[1680472441702,20.0,20.413,20.401,10.0]
[1680472442984,10.0,20.413,20.401,10.0]
[1680472443912,20.0,20.414,20.401,10.0]
[1680472444309,20.0,20.414,20.402,17.0]
[1680472444498,20.0,20.414,20.403,10.0]
[1680472445004,10.0,20.414,20.403,10.0]
[1680472445205,20.0,20.413,20.403,10.0]
[1680472445407,20.0,20.413,20.402,17.0]
[1680472446693,10.0,20.413,20.402,17.0]
[1680472446894,10.0,20.413,20.403,10.71668623]
[1680472447507,20.0,20.414,20.403,10.71668623]
[1680472449409,10.0,20.414,20.403,10.71668623]
[1680472449712,10.0,20.412,20.403,10.71668623]
[1680472449901,10.0,20.414,20.403,0.71668623]
[1680472450096,10.0,20.412,20.403,0.71668623]
[1680472450302,10.0,20.414,20.403,0.71668623]
[1680472450494,10.0,20.412,20.403,0.71668623]
[1680472450694,20.0,20.413,20.403,0.71668623]
[1680472452215,10.0,20.413,20.403,0.71668623]
[1680472452509,20.0,20.414,20.403,0.71668623]
[1680472452695,20.0,20.414,20.402,17.0]
[1680472453895,20.0,20.414,20.401,10.0]
[1680472454094,20.0,20.415,20.403,10.0]
[1680472454312,10.0,20.414,20.403,10.0]
[1680472454491,10.0,20.412,20.403,10.0]
[1680472454911,10.0,20.414,20.403,10.71668623]
[1680472455108,10.0,20.412,20.403,10.71668623]
[1680472455404,10.0,20.412,20.403,0.71668623]
[1680472455613,10.0,20.414,20.403,0.71668623]
[1680472455811,10.0,20.412,20.402,17.0]
[1680472456313,10.0,20.414,20.402,17.0]
[1680472456522,10.0,20.412,20.402,17.0]
[1680472457602,20.0,20.413,20.402,17.0]
[1680472457800,20.0,20.413,20.403,0.71668623]
[1680472458005,20.0,20.413,20.403,10.71668623]
[1680472458496,10.0,20.413,20.403,10.71668623]
[1680472460213,20.0,20.414,20.403,10.71668623]
[1680472460815,20.0,20.414,20.402,17.0]
[1680472461016,20.0,20.414,20.401,10.0]
[1680472461204,20.0,20.414,20.403,10.0]
[1680472462719,20.0,20.414,20.404,0.71580736]
[1680472463505,10.0,20.414,20.404,0.71580736]
[1680472463806,20.0,20.413,20.404,0.71580736]
[1680472465919,20.0,20.413,20.402,17.0]
[1680472466518,10.0,20.413,20.402,17.0]
[1680472466715,10.0,20.413,20.402,10.0]
[1680472467017,20.0,20.414,20.405,0.71492857]
[1680472467819,20.0,20.414,20.404,10.0]
[1680472468504,20.0,20.414,20.403,17.0]
[1680472469919,20.0,20.414,20.404,0.71580736]
[1680472474921,20.0,20.414,20.402,17.0]
[1680472475113,20.0,20.414,20.402,10.0]
[1680472475309,20.0,20.414,20.403,17.0]
[1680472475814,20.0,20.414,20.405,0.71492857]
[1680472476630,10.0,20.413,20.405,0.71492857]
[1680472476818,10.0,20.413,20.39,28.57]
[1680472477011,10.0,20.411,20.39,28.57]
[1680472477211,10.0,20.409,20.394,253.180508]
[1680472477924,10.0,20.411,20.406,0.71404987]
[1680472478128,10.0,20.409,20.406,0.71404987]
[1680472478326,10.0,20.409,20.394,253.180508]
[1680472478917,10.0,20.409,20.398,0.72108188]
[1680472479116,10.0,20.407,20.398,0.72108188]
[1680472479920,10.0,20.407,20.394,128.281044]
[1680472481131,10.0,20.407,20.394,19.593544]
[1680472482228,10.0,20.405,20.394,19.593544]
[1680472482616,10.0,20.403,20.394,19.593544]
[1680472482817,17.0,20.402,20.394,19.593544]
[1680472483022,10.0,20.401,20.394,19.593544]
[1680472483837,17.0,20.402,20.394,19.593544]
[1680472485916,17.0,20.402,20.388,10.0]
[1680472486121,17.0,20.402,20.39,10.0]
[1680472486318,17.0,20.402,20.392,10.0]
[1680472486524,17.0,20.402,20.393,20.0]
[1680472486723,88.0,20.4,20.393,20.0]
[1680472487425,88.0,20.4,20.391,20.0]
[1680472487728,88.0,20.4,20.392,10.0]
[1680472487929,88.0,20.4,20.393,20.0]
[1680472488531,88.0,20.4,20.392,10.0]
[1680472488824,88.0,20.4,20.393,20.0]
[1680472489428,88.0,20.4,20.392,10.0]
[1680472489728,88.0,20.4,20.393,20.0]
[1680472490425,88.0,20.4,20.391,20.0]
[1680472490616,88.0,20.4,20.392,10.0]
[1680472490816,88.0,20.4,20.393,20.0]
[1680472491532,88.0,20.4,20.392,10.0]
[1680472491731,88.0,20.4,20.393,20.0]
[1680472492321,88.0,20.4,20.391,20.0]
[1680472495018,88.0,20.4,20.39,10.0]
[1680472495231,88.0,20.4,20.391,20.0]
[1680472497034,88.0,20.4,20.388,20.0]
[1680472497334,88.0,20.4,20.389,10.0]
[1680472497636,88.0,20.4,20.39,20.0]
[1680472499531,88.0,20.4,20.39,10.0]
[1680472499730,88.0,20.4,20.391,20.0]
[1680472501027,88.0,20.4,20.39,10.0]
[1680472501236,88.0,20.4,20.391,20.0]
[1680472501427,88.0,20.4,20.389,20.0]
[1680472502242,110.9,20.4,20.389,20.0]
[1680472502737,110.9,20.4,20.388,19.598751]
[1680472502921,10.0,20.398,20.388,19.598751]
[1680472503332,17.0,20.397,20.388,19.598751]
[1680472503736,10.0,20.396,20.388,19.598751]
[1680472503935,10.0,20.394,20.388,19.598751]
[1680472504332,17.0,20.393,20.388,19.598751]
[1680472505734,10.0,20.394,20.388,19.598751]
[1680472505935,17.0,20.393,20.388,19.598751]
[1680472507545,10.0,20.394,20.388,19.598751]
[1680472507847,17.0,20.393,20.388,19.598751]
[1680472508731,10.0,20.394,20.388,19.598751]
[1680472508928,17.0,20.393,20.388,19.598751]
[1680472510547,10.0,20.394,20.388,19.598751]
[1680472510749,10.0,20.392,20.388,19.598751]
[1680472510947,10.0,20.394,20.388,19.598751]
[1680472511246,17.0,20.393,20.388,19.598751]
[1680472511839,17.0,20.393,20.381,10.0]
[1680472512038,17.0,20.393,20.383,10.0]
[1680472512242,17.0,20.393,20.384,20.0]
[1680472513451,17.0,20.393,20.382,20.0]
[1680472513656,10.0,20.394,20.383,10.0]
[1680472513871,17.0,20.393,20.384,20.0]
[1680472514146,17.0,20.393,20.382,20.0]
[1680472514346,10.0,20.392,20.382,20.0]
[1680472514549,10.0,20.392,20.362,25.35726009]
[1680472514550,10.0,20.392,20.378,30.0]
[1680472514747,10.0,20.39,20.379,10.0]
[1680472514935,10.0,20.39,20.381,10.0]
[1680472515139,17.0,20.389,20.382,20.0]
[1680472515340,10.0,20.39,20.382,20.0]
[1680472515552,17.0,20.389,20.382,20.0]
[1680472515939,17.0,20.389,20.381,10.0]
[1680472516153,10.0,20.39,20.381,10.0]
[1680472516345,17.0,20.389,20.381,10.0]
[1680472516545,17.0,20.389,20.379,10.0]
[1680472517045,10.0,20.39,20.379,10.0]
[1680472517244,17.0,20.389,20.378,10.0]
[1680472518142,10.0,20.39,20.378,10.0]
[1680472518342,17.0,20.389,20.378,10.0]
[1680472520652,10.0,20.39,20.378,10.0]
[1680472520858,17.0,20.389,20.378,10.0]
[1680472521453,17.0,20.389,20.375,92.44792058]
[1680472522651,10.0,20.39,20.375,92.44792058]
[1680472522963,10.0,20.388,20.375,92.44792058]
[1680472523337,17.0,20.389,20.375,92.44792058]
[1680472523542,17.0,20.389,20.381,19.606778]
[1680472523752,10.0,20.388,20.381,19.606778]
[1680472524254,17.0,20.389,20.381,19.606778]
[1680472524942,10.0,20.393,20.381,19.606778]
[1680472525360,10.0,20.391,20.381,19.606778]
[1680472525661,17.0,20.39,20.381,19.606778]
[1680472526157,10.0,20.393,20.381,19.606778]
[1680472526357,111.4738,20.394,20.383,10.0]
[1680472526654,111.4738,20.394,20.385,10.0]
[1680472528167,111.4738,20.394,20.383,10.0]
[1680472528462,111.4738,20.394,20.385,10.0]
[1680472529567,111.4738,20.394,20.384,20.0]
[1680472530356,111.4738,20.394,20.384,10.0]
[1680472531471,10.0,20.399,20.384,10.0]
[1680472531647,27.0,20.399,20.384,10.0]
[1680472536273,102.91051173,20.4,20.384,10.0]
[1680472536450,88.0,20.4,20.386,10.0]
[1680472539273,88.0,20.4,20.39,28.43]
[1680472539472,88.0,20.4,20.391,10.0]
[1680472541448,88.0,20.4,20.393,10.0]
[1680472541657,88.0,20.4,20.394,20.0]
[1680472541846,88.0,20.4,20.395,10.0]
[1680472543165,88.0,20.4,20.393,10.0]
[1680472543360,88.0,20.4,20.394,20.0]
[1680472550266,88.0,20.4,20.396,10.0]
[1680472551875,88.0,20.4,20.398,10.0]
[1680472552376,88.0,20.4,20.396,10.0]
[1680472552576,88.0,20.4,20.398,10.0]
[1680472552870,88.0,20.4,20.396,10.0]
[1680472553070,88.0,20.4,20.398,10.0]
[1680472553664,88.0,20.4,20.396,10.0]
[1680472553863,88.0,20.4,20.398,10.0]
[1680472554376,88.0,20.4,20.397,17.0]
[1680472556773,57.07,20.42,20.398,27.337864]
[1680472556976,28.43,20.42,20.4,28.43]
[1680472557277,28.43,20.42,20.401,10.0]
[1680472557582,28.43,20.42,20.402,20.0]
[1680472557785,28.43,20.42,20.403,10.0]
[1680472558086,28.43,20.42,20.405,10.0]
[1680472559269,28.43,20.42,20.411,10.0]
[1680472559468,28.43,20.42,20.412,20.0]
[1680472559865,28.43,20.42,20.413,10.0]
[1680472560181,28.43,20.42,20.414,20.0]
[1680472560486,28.43,20.42,20.415,10.0]
[1680472561289,28.43,20.42,20.414,20.0]
[1680472562769,28.43,20.42,20.413,10.0]
[1680472563087,28.43,20.42,20.414,20.0]
[1680472563572,14.54508841,20.429,20.414,20.0]
[1680472563773,10.0,20.425,20.414,20.0]
[1680472563974,10.0,20.425,20.412,10.0]
[1680472564175,10.0,20.423,20.413,20.0]
[1680472566075,10.0,20.423,20.412,10.0]
[1680472566281,10.0,20.423,20.413,20.0]
[1680472567992,10.0,20.423,20.412,10.0]
[1680472568190,10.0,20.423,20.414,10.0]
[1680472568383,10.0,20.423,20.412,10.0]
[1680472568585,10.0,20.423,20.413,20.0]
[1680472569996,10.0,20.423,20.412,10.0]
[1680472570292,10.0,20.421,20.413,20.0]
[1680472570497,10.0,20.421,20.411,20.0]
[1680472572186,10.0,20.421,20.409,10.0]
[1680472572391,10.0,20.421,20.41,20.0]
[1680472574496,10.0,20.423,20.41,20.0]
[1680472574698,10.0,20.421,20.41,20.0]
[1680472577085,10.0,20.423,20.41,20.0]
[1680472577285,10.0,20.421,20.41,20.0]
[1680472579695,10.0,20.421,20.409,33.95229345]
[1680472579901,17.0,20.42,20.409,19.579727]
[1680472580096,10.0,20.419,20.409,19.579727]
[1680472580399,10.0,20.417,20.409,19.579727]
[1680472581184,10.0,20.415,20.409,19.579727]
[1680472581382,17.0,20.414,20.409,2.7e-05]
[1680472581581,10.0,20.413,20.409,2.7e-05]
[1680472581795,17.0,20.412,20.409,2.7e-05]
[1680472582000,10.0,20.411,20.409,2.7e-05]
[1680472582186,17.0,20.41,20.409,2.7e-05]
[1680472585997,10.0,20.409,20.394,20.0]
[1680472586201,10.0,20.407,20.394,20.0]
[1680472586498,10.0,20.405,20.392,20.0]
[1680472586695,10.0,20.405,20.393,10.0]
[1680472586900,10.0,20.403,20.394,20.0]
[1680472587993,17.0,20.404,20.393,10.0]
[1680472588195,17.0,20.404,20.394,20.0]
[1680472590601,17.0,20.404,20.393,10.0]
[1680472590901,17.0,20.404,20.394,20.0]
[1680472591201,10.0,20.403,20.394,20.0]
[1680472591410,10.0,20.401,20.394,20.0]
[1680472591611,10.0,20.401,20.389,10.0]
[1680472591904,10.0,20.401,20.391,10.0]
[1680472592308,10.0,20.403,20.393,10.0]
[1680472592496,10.0,20.405,20.394,20.0]
[1680472592696,10.0,20.403,20.394,20.0]
[1680472593910,17.0,20.404,20.394,20.0]
[1680472594708,17.0,20.404,20.393,10.0]
[1680472594909,17.0,20.404,20.395,10.0]
[1680472595111,17.0,20.404,20.394,20.0]
[1680472596110,10.0,20.405,20.394,20.0]
[1680472596310,10.0,20.403,20.394,20.0]
[1680472596512,10.0,20.403,20.393,10.0]
[1680472596719,10.0,20.403,20.394,20.0]
[1680472597815,10.0,20.403,20.393,10.0]
[1680472598011,10.0,20.403,20.394,20.0]
[1680472598213,17.0,20.404,20.394,20.0]
[1680472598411,10.0,20.407,20.394,20.0]
[1680472598707,10.0,20.405,20.394,20.0]
[1680472598907,10.0,20.403,20.394,20.0]
[1680472599521,10.0,20.403,20.393,10.0]
[1680472599824,17.0,20.404,20.394,20.0]
[1680472600910,10.0,20.405,20.394,20.0]
[1680472601111,10.0,20.403,20.394,20.0]
[1680472601516,10.0,20.405,20.393,10.0]
[1680472601715,10.0,20.405,20.394,20.0]
[1680472601716,10.0,20.403,20.394,20.0]
[1680472601918,10.0,20.405,20.394,20.0]
[1680472602425,10.0,20.405,20.394,137.0668]
[1680472602726,17.0,20.406,20.395,10.0]
[1680472602930,10.0,20.407,20.395,10.0]
[1680472603126,10.0,20.405,20.395,10.0]
[1680472604532,10.0,20.407,20.395,10.0]
[1680472604722,10.0,20.405,20.394,137.0668]
[1680472607832,10.0,20.407,20.394,137.0668]
[1680472608035,10.0,20.405,20.394,137.0668]
[1680472608534,10.0,20.407,20.394,137.0668]
[1680472608734,10.0,20.405,20.395,10.0]
[1680472609223,10.0,20.407,20.395,10.0]
[1680472609420,57.2,20.42,20.395,10.0]
[1680472609621,130.93208269,20.417,20.395,10.0]
[1680472610732,10.0,20.407,20.395,10.0]
[1680472610934,10.0,20.405,20.395,10.0]
[1680472611330,10.0,20.405,20.394,137.0668]
[1680472611519,10.0,20.407,20.395,10.0]
[1680472611722,17.0,20.406,20.395,10.0]
[1680472612431,130.93208269,20.417,20.395,10.0]
[1680472612635,17.0,20.41,20.395,10.0]
[1680472612824,10.0,20.411,20.395,10.0]
[1680472613226,10.0,20.411,20.397,10.0]
[1680472613817,119.2022,20.416,20.397,10.0]
[1680472614023,119.2022,20.416,20.399,10.0]
[1680472614241,109.2022,20.416,20.399,10.0]
[1680472614749,10.0,20.416,20.399,10.0]
[1680472615417,17.0,20.415,20.399,10.0]
[1680472615623,10.0,20.414,20.401,10.0]
[1680472617640,10.0,20.416,20.401,10.0]
[1680472617938,10.0,20.416,20.403,10.0]
[1680472618137,14.53478269,20.417,20.404,20.0]
[1680472618346,10.0,20.419,20.405,10.0]
[1680472618522,17.0,20.418,20.405,124.9858]
[1680472621344,10.0,20.417,20.405,124.9858]
[1680472624538,17.0,20.418,20.405,124.9858]
[1680472626535,17.0,20.418,20.405,114.9858]
[1680472629843,17.0,20.418,20.406,10.0]
[1680472636149,10.0,20.422,20.406,10.0]
[1680472637354,10.0,20.42,20.406,10.0]
[1680472641041,17.0,20.421,20.406,10.0]
[1680472646255,10.0,20.422,20.406,10.0]
[1680472646446,10.0,20.422,20.408,10.0]
[1680472647343,10.0,20.422,20.407,17.0]
[1680472649162,10.0,20.422,20.408,10.0]
[1680472651863,10.0,20.42,20.405,114.9858]
[1680472652064,10.0,20.418,20.405,114.9858]
[1680472653860,10.0,20.416,20.405,114.9858]
[1680472657063,10.0,20.418,20.405,114.9858]
[1680472659564,10.0,20.42,20.405,114.9858]
[1680472660767,10.0,20.42,20.406,10.0]
[1680472663545,10.0,20.422,20.406,10.0]
[1680472663750,10.0,20.42,20.406,10.0]
[1680472667256,17.0,20.421,20.406,10.0]
[1680472668269,10.0,20.422,20.406,10.0]
[1680472668471,10.0,20.42,20.406,10.0]
[1680472669376,17.0,20.421,20.406,10.0]
[1680472670567,28.49,20.43,20.407,17.0]
[1680472670755,17.0,20.425,20.408,10.0]
[1680472670958,10.0,20.424,20.408,10.0]
[1680472671159,10.0,20.422,20.408,10.0]
[1680472671657,10.0,20.424,20.408,10.0]
[1680472671857,10.0,20.424,20.409,17.0]
[1680472672159,10.0,20.424,20.41,10.0]
[1680472672563,17.0,20.423,20.405,114.9858]
[1680472672768,10.0,20.422,20.405,114.9858]
[1680472672972,10.0,20.42,20.405,114.9858]
[1680472673161,10.0,20.42,20.406,10.0]
[1680472673360,10.0,20.424,20.406,10.0]
[1680472673560,107.22356983,20.432,20.407,55.91665337]
[1680472673561,14.54508841,20.429,20.407,55.91665337]
[1680472673757,10.0,20.428,20.408,17.0]
[1680472673972,10.0,20.428,20.408,27.0]
[1680472674371,10.0,20.428,20.409,10.0]
[1680472674569,17.0,20.425,20.409,10.0]
[1680472674767,10.0,20.424,20.409,10.0]
[1680472674971,10.0,20.422,20.409,10.0]
[1680472676476,10.0,20.422,20.406,10.0]
[1680472676671,10.0,20.42,20.406,10.0]
[1680472676978,10.0,20.42,20.405,114.9858]
[1680472677164,10.0,20.418,20.405,114.9858]
[1680472677364,17.0,20.417,20.405,114.9858]
[1680472677576,10.0,20.416,20.405,114.9858]
[1680472678479,17.0,20.417,20.405,114.9858]
[1680472681578,10.0,20.418,20.405,114.9858]
[1680472681774,10.0,20.416,20.405,114.9858]
[1680472682581,10.0,20.418,20.405,114.9858]
[1680472682877,10.0,20.416,20.405,114.9858]
[1680472683071,10.0,20.418,20.405,114.9858]
[1680472684080,10.0,20.42,20.405,114.9858]
[1680472684268,10.0,20.418,20.406,10.0]
[1680472684673,17.0,20.419,20.406,10.0]
[1680472685479,10.0,20.42,20.406,10.0]
[1680472685681,10.0,20.418,20.406,10.0]
[1680472686375,17.0,20.419,20.406,10.0]
[1680472690172,10.0,20.42,20.406,10.0]
[1680472690374,10.0,20.418,20.406,10.0]
[1680472690979,10.0,20.42,20.406,10.0]
[1680472691189,10.0,20.42,20.408,10.0]
[1680472692772,10.0,20.428,20.408,10.0]
[1680472693582,10.0,20.428,20.41,10.0]
[1680472694876,10.0,20.422,20.408,10.0]
[1680472699487,10.0,20.428,20.409,20.0]
[1680472699789,10.0,20.424,20.411,10.0]
[1680472700001,10.0,20.424,20.412,20.0]
[1680472700593,17.0,20.425,20.413,10.0]
[1680472700896,10.0,20.425,20.413,10.0]
[1680472701389,10.0,20.425,20.412,20.0]
[1680472702391,10.0,20.425,20.413,10.0]
[1680472704097,10.0,20.426,20.413,10.0]
[1680472708391,10.0,20.426,20.413,10.0]
[1680472709001,10.0,20.426,20.412,20.0]
[1680472712789,10.0,20.428,20.414,10.0]
[1680472716698,10.0,20.429,20.414,10.0]
[1680472722315,10.0,20.429,20.416,10.0]
[1680472723016,37.4154784,20.43,20.416,119.1686]
[1680472723413,37.4154784,20.43,20.418,10.0]
[1680472725212,37.4154784,20.43,20.417,17.0]
[1680472726320,37.4154784,20.43,20.416,109.1686]
[1680472736319,10.0,20.428,20.416,109.1686]
[1680472737817,27.0,20.429,20.416,109.1686]
[1680472739642,10.0,20.428,20.416,109.1686]
[1680472739925,10.0,20.426,20.416,109.1686]
[1680472740329,10.0,20.424,20.416,109.1686]
[1680472740730,10.0,20.422,20.412,20.0]
[1680472743537,10.0,20.424,20.412,20.0]
[1680472743842,10.0,20.422,20.412,20.0]
[1680472744037,10.0,20.422,20.405,114.9858]
[1680472744038,32.85,20.42,20.405,114.9858]
[1680472744342,17.0,20.419,20.405,114.9858]
[1680472744521,10.0,20.418,20.405,114.9858]
[1680472744921,10.0,20.416,20.405,114.9858]
[1680472745337,10.0,20.414,20.405,114.9858]
[1680472745727,17.0,20.415,20.405,114.9858]
[1680472746129,10.0,20.418,20.405,114.9858]
[1680472750538,38.51,20.42,20.405,114.9858]
[1680472750743,10.0,20.418,20.405,114.9858]
[1680472757449,10.0,20.416,20.405,114.9858]
[1680472757830,10.0,20.414,20.405,114.9858]
[1680472758551,17.0,20.415,20.405,114.9858]
[1680472763347,10.0,20.42,20.405,114.9858]
[1680472772556,101.3218384,20.43,20.405,114.9858]
[1680472772756,10.0,20.42,20.405,114.9858]
[1680472777360,10.0,20.42,20.407,10.0]
[1680472785560,17.0,20.421,20.407,10.0]
[1680472785751,17.0,20.421,20.406,17.0]
[1680472786764,17.0,20.421,20.407,10.0]
[1680472788550,17.0,20.421,20.406,27.0]
[1680472789969,17.0,20.421,20.406,17.0]
[1680472795979,17.0,20.421,20.405,114.9858]
[1680472796164,17.0,20.421,20.406,10.0]
[1680472799371,81.4654784,20.43,20.408,10.0]
[1680472800553,81.4654784,20.43,20.407,17.0]
[1680472800870,10.0,20.42,20.406,10.0]
[1680472802373,10.0,20.418,20.405,114.9858]
[1680472802675,10.0,20.416,20.405,114.9858]
[1680472802889,20.0,20.415,20.405,114.9858]
[1680472803382,10.0,20.414,20.405,110.8727902]
[1680472804364,20.0,20.415,20.405,110.8727902]
[1680472806388,10.0,20.413,20.405,110.8727902]
[1680472806562,17.0,20.412,20.405,110.8727902]
[1680472806875,10.0,20.411,20.405,110.8727902]
[1680472807068,10.0,20.409,20.396,19.587349]
[1680472810266,17.0,20.41,20.396,19.587349]
[1680472810476,10.0,20.414,20.397,65.9008367]
[1680472810779,17.0,20.413,20.397,73.2387007]
[1680472810958,17.0,20.413,20.399,10.0]
[1680472811579,20.0,20.415,20.399,10.0]
[1680472811784,10.0,20.413,20.399,10.0]
[1680472814782,17.0,20.414,20.399,10.0]
[1680472815385,34.6049017,20.415,20.4,17.0]
[1680472815591,34.6049017,20.415,20.401,10.0]
[1680472815880,28.36,20.42,20.401,10.0]
[1680472815881,71.5254784,20.43,20.402,17.0]
[1680472816085,10.0,20.423,20.403,10.0]
[1680472816282,10.0,20.423,20.405,10.0]
[1680472816589,10.0,20.423,20.407,10.0]
[1680472818172,10.0,20.423,20.409,10.0]
[1680472818588,10.0,20.423,20.407,10.0]
[1680472818892,10.0,20.423,20.405,120.7192]
[1680472819186,10.0,20.423,20.407,10.0]
[1680472819368,10.0,20.423,20.408,17.0]
[1680472819570,10.0,20.423,20.409,10.0]
[1680472822085,10.0,20.423,20.411,10.0]
[1680472822795,10.0,20.423,20.409,10.0]
[1680472822989,10.0,20.423,20.411,10.0]
[1680472823193,10.0,20.423,20.409,10.0]
[1680472823375,10.0,20.423,20.41,17.0]
[1680472824300,29.593748,20.423,20.41,17.0]
[1680472825096,29.593748,20.423,20.409,10.0]
[1680472825278,29.593748,20.423,20.411,10.0]
[1680472825470,29.593748,20.423,20.409,10.0]
[1680472825671,29.593748,20.423,20.411,10.0]
[1680472825874,29.593748,20.423,20.407,10.0]
[1680472826089,29.593748,20.423,20.409,10.0]
[1680472827081,29.593748,20.423,20.408,17.0]
[1680472827287,10.0,20.421,20.399,396.3]
[1680472827996,10.0,20.421,20.408,10.0]
[1680472829193,10.0,20.421,20.4,28.59]
[1680472829508,28.45,20.42,20.405,110.7192]
[1680472829677,10.0,20.419,20.406,10.0]
[1680472831398,10.0,20.419,20.405,110.7192]
[1680472834409,10.0,20.419,20.406,10.0]
[1680472836903,10.0,20.421,20.406,10.0]
[1680472837101,10.0,20.419,20.406,10.0]
[1680472837886,10.0,20.419,20.405,110.7192]
[1680472839314,17.0,20.418,20.405,110.7192]
[1680472839500,20.0,20.417,20.401,19.585964]
[1680472839811,10.0,20.415,20.401,136.377064]
[1680472840196,10.0,20.415,20.401,19.585964]
[1680472840197,17.0,20.414,20.401,19.585964]
[1680472840392,10.0,20.413,20.401,19.585964]
[1680472840910,10.0,20.411,20.401,19.585964]
[1680472841108,10.0,20.409,20.401,19.585964]
[1680472841409,17.0,20.408,20.401,19.585964]
[1680472841609,10.0,20.407,20.401,19.585964]
[1680472842994,17.0,20.408,20.401,19.585964]
[1680472843193,10.0,20.407,20.401,19.585964]
[1680472846708,10.0,20.407,20.396,118.3762]
[1680472847604,17.0,20.408,20.396,118.3762]
[1680472848310,117.066764,20.416,20.396,118.3762]
[1680472848607,20.0,20.415,20.397,17.0]
[1680472848811,10.0,20.414,20.398,10.0]
[1680472849001,10.0,20.414,20.399,17.0]
[1680472849196,10.0,20.414,20.4,10.0]
[1680472849895,10.0,20.414,20.399,17.0]
[1680472850422,10.0,20.414,20.399,10.0]
[1680472850598,10.0,20.414,20.398,17.0]
[1680472851916,10.0,20.412,20.396,118.3762]
[1680472852116,10.0,20.41,20.396,118.3762]
[1680472852816,10.0,20.41,20.397,10.0]